[Event "European Womens-ch 2025"]
[Site "Rhodes"]
[Date "2025.04.05"]
[Round "6.44"]
[White "Ter-Avetisjana, Agnesa Stepania"]
[Black "Dwilewicz, Katarzyna"]
[Result "1/2-1/2"]
[Annotator "ChessBase"]
[ECO "C00"]
[WhiteElo "2100"]
[BlackElo "2203"]
[PlyCount "112"]
[EventDate "2025.03.29"]
[EventType "swiss"]
[EventCountry "GRE"]
[SourceTitle "playchess.com"]
[Source "ChessBase"]
[SourceQuality "1"]
[TimeControl "40/5400+30:1800+30"]

1. e4 {[%emt 0:00:02]} c5 {[%emt 0:00:21]} 2. Nf3 {[%emt 0:00:05]} e6 {[%emt 0:00:19]} 3. g3 {[%emt 0:00:06]} Nc6 {[%emt 0:00:21]} 4. Bg2 {[%emt 0:00:12]} Nf6 {[%emt 0:00:14]} 5. d3 {[%emt 0:00:11]} d5 {[%emt 0:00:13]} 6. Qe2 {[%emt 0:00:05]} Be7 {[%emt 0:00:15]} 7. O-O {[%emt 0:00:31]} b6 {[%emt 0:00:34]} 8. e5 {[%emt 0:00:08]} Nd7 {[%emt 0:00:07]} 9. c4 {[%emt 0:00:04]} Nf8 {[%emt 0:09:16]} 10. h4 {[%emt 0:04:04]} Bb7 {[%emt 0:02:47]} 11. Nc3 {[%emt 0:11:34]} d4 {[%emt 0:09:57]} 12. Nb1 {[%emt 0:10:41]} h6 {[%emt 0:01:56]} 13. Nh2 {[%emt 0:04:53]} Nd7 {[%emt 0:12:01]} 14. f4 {[%emt 0:02:43]} Qc7 {[%emt 0:01:10]} 15. Nd2 {[%emt 0:03:58]} O-O-O {[%emt 0:00:32]} 16. Ne4 {[%emt 0:00:24]} f5 {[%emt 0:09:03]} 17. exf6 {[%emt 0:02:18]} gxf6 {[%emt 0:00:35]} 18. f5 {[%emt 0:01:35]} e5 {[%emt 0:01:25]} 19. Ng4 {[%emt 0:17:07]} h5 {[%emt 0:05:26]} 20. Nh6 {[%emt 0:02:40]} Rh7 {[%emt 0:00:17]} 21. Qxh5 {[%emt 0:00:23]} Rdh8 {[%emt 0:05:20]} 22. g4 {[%emt 0:08:17]} Nb4 {[%emt 0:03:52]} 23. g5 {[%emt 0:10:17]} Nxd3 {[%emt 0:07:56]} 24. g6 {[%emt 0:00:40]} Rg7 {[%emt 0:04:15]} 25. Bd2 {[%emt 0:08:35]} Nf4 {[%emt 0:03:23]} 26. Rxf4 {[%emt 0:01:09]} exf4 {[%emt 0:00:07]} 27. Rf1 {[%emt 0:00:04]} f3 {[%emt 0:04:09]} 28. Qxf3 {[%emt 0:02:19]} Ne5 {[%emt 0:00:44]} 29. Qg3 {[%emt 0:03:17]} Bxe4 {[%emt 0:02:58]} 30. Bxe4 {[%emt 0:00:02]} Nxc4 {[%emt 0:01:32]} 31. Bf4 {[%emt 0:00:00]} Bd6 {[%emt 0:00:17]} 32. Bd5 {[%emt 0:02:57]} Bxf4 {[%emt 0:01:30]} 33. Rxf4 {[%emt 0:00:17]} Ne5 {[%emt 0:05:02]} 34. Ng4 {[%emt 0:00:37]} Nxg4 {[%emt 0:02:28]} 35. Qxg4 {[%emt 0:00:06]} Rd8 {[%emt 0:01:25]} 36. Be6+ {[%emt 0:01:17]} Kb8 {[%emt 0:00:01]} 37. h5 {[%emt 0:00:13]} d3 {[%emt 0:00:11]} 38. h6 {[%emt 0:00:08]} d2 {[%emt 0:01:32]} 39. Rf1 {[%emt 0:00:13]} Rd4 {[%emt 0:03:22]} 40. Qf3 {[%emt 0:00:00]} Rh4 {[%emt 0:00:00]} 41. Rf2 {[%emt 0:02:06]} Rxh6 {[%emt 0:06:52]} 42. Rxd2 {[%emt 0:00:42]} Rh8 {[%emt 0:04:32]} 43. Kf1 {[%emt 0:05:50]} Qe5 {[%emt 0:02:04]} 44. Rf2 {[%emt 0:02:35]} Rd8 {[%emt 0:03:35]} 45. Bf7 {[%emt 0:02:18]} Qc7 {[%emt 0:01:21]} 46. Qf4 {[%emt 0:02:08]} Qxf4 47. Rxf4 {[%emt 0:00:02]} Kc7 {[%emt 0:12:32]} 48. Re4 {[%emt 0:02:07]} Rd7 {[%emt 0:00:12]} 49. Ke2 {[%emt 0:03:23]} Rdxf7 {[%emt 0:01:34]} 50. gxf7 {[%emt 0:00:01]} Rxf7 {[%emt 0:00:06]} 51. Re6 {[%emt 0:00:20]} Rh7 {[%emt 0:01:50]} 52. Kd3 {[%emt 0:00:30]} Rd7+ {[%emt 0:00:14]} 53. Ke3 {[%emt 0:04:20]} Rd6 {[%emt 0:00:22]} 54. Re7+ {[%emt 0:00:02]} Kb8 {[%emt 0:01:30]} 55. Re8+ {[%emt 0:04:37]} Kb7 {[%emt 0:00:16]} 56. Re7+ {[%emt 0:00:02]} Kb8 {[%emt 0:01:02]} 1/2-1/2

[Event "European Womens-ch 2025"]
[Site "Rhodes"]
[Date "2025.04.05"]
[Round "6.45"]
[White "Schloffer, Jasmin-Denise"]
[Black "Bochnickova, Andrea"]
[Result "1/2-1/2"]
[Annotator "ChessBase"]
[ECO "A59"]
[WhiteElo "2188"]
[BlackElo "2051"]
[PlyCount "91"]
[EventDate "2025.03.29"]
[EventType "swiss"]
[EventCountry "GRE"]
[SourceTitle "playchess.com"]
[Source "ChessBase"]
[SourceQuality "1"]
[TimeControl "40/5400+30:1800+30"]

1. d4 {[%emt 0:00:03]} Nf6 {[%emt 0:00:11]} 2. c4 {[%emt 0:00:05]} c5 {[%emt 0:00:09]} 3. d5 {[%emt 0:00:06]} b5 {[%emt 0:00:05]} 4. cxb5 {[%emt 0:00:08]} a6 {[%emt 0:00:12]} 5. bxa6 {[%emt 0:00:06]} Bxa6 {[%emt 0:00:19]} 6. Nc3 {[%emt 0:00:08]} g6 {[%emt 0:00:36]} 7. e4 {[%emt 0:00:13]} Bxf1 {[%emt 0:00:26]} 8. Kxf1 {[%emt 0:00:05]} d6 {[%emt 0:00:44]} 9. Nf3 {[%emt 0:00:28]} Bg7 {[%emt 0:00:07]} 10. g3 {[%emt 0:00:14]} O-O {[%emt 0:00:07]} 11. Kg2 {[%emt 0:00:05]} Nbd7 {[%emt 0:03:53]} 12. a4 {[%emt 0:00:27]} Qb6 {[%emt 0:04:51]} 13. Qe2 {[%emt 0:02:17]} Qa6 {[%emt 0:12:03]} 14. Qxa6 {[%emt 0:20:48]} Rxa6 {[%emt 0:02:16]} 15. Ra3 {[%emt 0:00:05]} Rb8 {[%emt 0:03:14]} 16. Re1 {[%emt 0:04:17]} Ng4 {[%emt 0:08:48]} 17. Nb5 {[%emt 0:16:52]} Nge5 {[%emt 0:07:04]} 18. Nc7 {[%emt 0:04:21]} Rab6 {[%emt 0:09:47]} 19. Nd2 {[%emt 0:02:40]} c4 {[%emt 0:02:31]} 20. Rd1 {[%emt 0:03:51]} R6b7 {[%emt 0:08:43]} 21. Nb5 {[%emt 0:00:39]} Nc5 {[%emt 0:05:49]} 22. f4 {[%emt 0:03:26]} c3 {[%emt 0:04:58]} 23. bxc3 {[%emt 0:12:36]} Ng4 {[%emt 0:05:08]} 24. c4 {[%emt 0:03:34]} f5 {[%emt 0:08:01]} 25. h3 {[%emt 0:03:01]} Nh6 {[%emt 0:03:52]} 26. Re1 {[%emt 0:04:12]} fxe4 {[%emt 0:05:28]} 27. Nxe4 {[%emt 0:00:20]} Nf5 {[%emt 0:01:19]} 28. Nxc5 {[%emt 0:02:43]} dxc5 {[%emt 0:00:04]} 29. Be3 {[%emt 0:00:41]} Bd4 {[%emt 0:01:29]} 30. Bxd4 {[%emt 0:02:21]} cxd4 {[%emt 0:00:04]} 31. Kf3 {[%emt 0:03:33]} Rc8 {[%emt 0:00:12]} 32. a5 {[%emt 0:03:52]} Rxc4 {[%emt 0:00:14]} 33. a6 {[%emt 0:00:22]} Rb8 {[%emt 0:01:26]} 34. a7 {[%emt 0:00:31]} Ra8 {[%emt 0:00:03]} 35. Rb1 {[%emt 0:01:08]} Kf7 {[%emt 0:00:10]} 36. g4 {[%emt 0:04:51]} Ne3 {[%emt 0:00:07]} 37. Nxd4 {[%emt 0:00:13]} Nxd5 {[%emt 0:00:58]} 38. Rb8 {[%emt 0:01:49]} Rxa7 {[%emt 0:00:52]} 39. Rxa7 {[%emt 0:00:17]} Rxd4 {[%emt 0:00:04]} 40. Rd8 {[%emt 0:00:00]} Rxf4+ {[%emt 0:00:00]} 41. Kg3 {[%emt 0:05:31]} Rd4 {[%emt 0:03:48]} 42. g5 {[%emt 0:14:27]} Ke6 {[%emt 0:03:00]} 43. Rh8 {[%emt 0:03:10]} Rd3+ {[%emt 0:02:10]} 44. Kh2 {[%emt 0:00:13]} Kf5 {[%emt 0:01:06]} 45. Rxh7 {[%emt 0:01:59]} Kxg5 {[%emt 0:01:51]} 46. Rhxe7 {[%emt 0:00:48]} 1/2-1/2

[Event "European Womens-ch 2025"]
[Site "Rhodes"]
[Date "2025.04.05"]
[Round "6.46"]
[White "Bochnickova, Simona"]
[Black "Krkyasharyan, Sona"]
[Result "0-1"]
[Annotator "ChessBase"]
[ECO "B97"]
[WhiteElo "2167"]
[BlackElo "1989"]
[PlyCount "78"]
[EventDate "2025.03.29"]
[EventType "swiss"]
[EventCountry "GRE"]
[SourceTitle "playchess.com"]
[Source "ChessBase"]
[SourceQuality "1"]
[TimeControl "40/5400+30:1800+30"]

1. e4 {[%emt 0:00:02]} c5 {[%emt 0:00:06]} 2. Nf3 {[%emt 0:00:05]} d6 {[%emt 0:00:05]} 3. d4 {[%emt 0:00:04]} cxd4 {[%emt 0:00:04]} 4. Nxd4 {[%emt 0:00:05]} Nf6 {[%emt 0:00:05]} 5. Nc3 {[%emt 0:00:05]} a6 {[%emt 0:00:03]} 6. Bg5 {[%emt 0:00:15]} e6 {[%emt 0:00:09]} 7. f4 {[%emt 0:00:11]} Qb6 {[%emt 0:00:14]} 8. Qd2 {[%emt 0:03:34]} Qxb2 {[%emt 0:01:33]} 9. Rb1 {[%emt 0:00:13]} Qa3 {[%emt 0:00:05]} 10. e5 {[%emt 0:18:53]} dxe5 {[%emt 0:00:11]} 11. fxe5 {[%emt 0:00:07]} h6 {[%emt 0:00:09]} 12. Bh4 {[%emt 0:09:59]} Nfd7 {[%emt 0:00:07]} 13. Be2 {[%emt 0:11:39]} Bb4 {[%emt 0:10:11]} 14. Rb3 {[%emt 0:01:12]} Qa5 {[%emt 0:00:14]} 15. Nxe6 {[%emt 0:03:14]} Nc5 {[%emt 0:23:12]} 16. Nxg7+ {[%emt 0:11:20]} Kf8 {[%emt 0:00:04]} 17. Rxb4 {[%emt 0:00:53]} Qxb4 {[%emt 0:01:07]} 18. Qd8+ {[%emt 0:13:22]} Kxg7 {[%emt 0:00:14]} 19. Qf6+ {[%emt 0:00:07]} Kg8 {[%emt 0:00:50]} 20. O-O {[%emt 0:00:21]} Qd4+ {[%emt 0:08:47]} 21. Kh1 {[%emt 0:00:05]} Be6 {[%emt 0:00:16]} 22. Rf3 {[%emt 0:06:57]} Kh7 {[%emt 0:09:58]} 23. Bf2 {[%emt 0:05:14]} Qd8 {[%emt 0:08:11]} 24. Bxc5 {[%emt 0:00:36]} Qxf6 {[%emt 0:00:06]} 25. exf6 {[%emt 0:00:14]} Rc8 {[%emt 0:05:24]} 26. Bd3+ {[%emt 0:03:11]} Kh8 {[%emt 0:00:40]} 27. Ne4 {[%emt 0:00:32]} Nd7 {[%emt 0:00:43]} 28. Bd4 {[%emt 0:00:50]} Rc6 {[%emt 0:06:13]} 29. c3 {[%emt 0:01:59]} Rd8 {[%emt 0:02:30]} 30. Bb1 {[%emt 0:02:38]} Ne5 {[%emt 0:03:34]} 31. Rf1 {[%emt 0:00:06]} Nc4 {[%emt 0:00:07]} 32. Rf4 {[%emt 0:02:30]} Na3 {[%emt 0:01:29]} 33. Bd3 {[%emt 0:01:40]} Bxa2 {[%emt 0:02:11]} 34. Nd2 {[%emt 0:00:22]} Nb5 {[%emt 0:00:53]} 35. Bxb5 {[%emt 0:00:05]} axb5 {[%emt 0:00:03]} 36. Rh4 {[%emt 0:00:34]} b4 {[%emt 0:02:10]} 37. c4 {[%emt 0:02:32]} b3 {[%emt 0:02:41]} 38. h3 {[%emt 0:02:28]} b2 {[%emt 0:00:30]} 39. Be3 {[%emt 0:01:08]} Rxd2 {[%emt 0:00:48]} 0-1

[Event "European Womens-ch 2025"]
[Site "Rhodes"]
[Date "2025.04.05"]
[Round "6.47"]
[White "Eric, Jovana"]
[Black "Korenova, Martina"]
[Result "1-0"]
[Annotator "ChessBase"]
[ECO "C54"]
[WhiteElo "2147"]
[BlackElo "2045"]
[PlyCount "117"]
[EventDate "2025.03.29"]
[EventType "swiss"]
[EventCountry "GRE"]
[SourceTitle "playchess.com"]
[Source "ChessBase"]
[SourceQuality "1"]
[TimeControl "40/5400+30:1800+30"]

1. e4 {[%emt 0:00:03]} e5 {[%emt 0:00:11]} 2. Nf3 {[%emt 0:00:07]} Nc6 {[%emt 0:00:06]} 3. Bc4 {[%emt 0:00:11]} Bc5 {[%emt 0:00:13]} 4. c3 {[%emt 0:00:15]} Nf6 {[%emt 0:00:27]} 5. d3 {[%emt 0:00:06]} d6 {[%emt 0:00:28]} 6. O-O {[%emt 0:00:28]} O-O {[%emt 0:00:34]} 7. h3 {[%emt 0:00:31]} a6 {[%emt 0:05:39]} 8. a4 {[%emt 0:01:20]} Ba7 {[%emt 0:01:18]} 9. Re1 {[%emt 0:01:45]} Ne7 {[%emt 0:01:58]} 10. d4 {[%emt 0:05:42]} Ng6 {[%emt 0:01:20]} 11. Bd3 {[%emt 0:02:23]} Nh5 {[%emt 0:08:59]} 12. Bg5 {[%emt 0:08:27]} Qe8 {[%emt 0:03:17]} 13. Be3 {[%emt 0:13:54]} Bd7 {[%emt 0:13:23]} 14. Nbd2 {[%emt 0:02:02]} Nhf4 {[%emt 0:00:59]} 15. Bf1 {[%emt 0:00:32]} Kh8 {[%emt 0:04:37]} 16. Kh2 {[%emt 0:02:32]} c6 {[%emt 0:06:09]} 17. g3 {[%emt 0:03:35]} Ne6 {[%emt 0:00:19]} 18. Nc4 {[%emt 0:03:10]} exd4 {[%emt 0:03:55]} 19. Nxd4 {[%emt 0:01:44]} d5 {[%emt 0:04:07]} 20. exd5 {[%emt 0:07:39]} cxd5 {[%emt 0:00:04]} 21. Nd6 {[%emt 0:00:29]} Qe7 {[%emt 0:04:59]} 22. N6f5 {[%emt 0:07:09]} Qf6 {[%emt 0:00:33]} 23. Bg2 {[%emt 0:02:05]} Nc5 {[%emt 0:08:09]} 24. Qc2 {[%emt 0:07:20]} Ne5 {[%emt 0:01:24]} 25. Nh4 {[%emt 0:07:10]} Be6 {[%emt 0:12:03]} 26. f4 {[%emt 0:05:38]} Nc4 {[%emt 0:06:46]} 27. f5 {[%emt 0:03:33]} Nxe3 {[%emt 0:00:20]} 28. Rxe3 {[%emt 0:00:04]} Bd7 {[%emt 0:00:09]} 29. Bxd5 {[%emt 0:00:25]} Rfe8 {[%emt 0:00:25]} 30. Rxe8+ {[%emt 0:02:08]} Rxe8 {[%emt 0:00:05]} 31. b4 {[%emt 0:04:29]} Bb8 {[%emt 0:00:23]} 32. bxc5 {[%emt 0:01:16]} Qxh4 {[%emt 0:00:11]} 33. Qf2 {[%emt 0:00:22]} Qe7 {[%emt 0:04:00]} 34. c6 {[%emt 0:03:35]} bxc6 {[%emt 0:00:49]} 35. Bxc6 {[%emt 0:00:13]} Bxc6 {[%emt 0:02:26]} 36. Nxc6 {[%emt 0:00:06]} Qc7 {[%emt 0:01:50]} 37. Nxb8 {[%emt 0:00:39]} Rxb8 {[%emt 0:00:04]} 38. Rc1 {[%emt 0:00:51]} Qe5 {[%emt 0:00:17]} 39. Rc2 {[%emt 0:00:38]} Qe4 {[%emt 0:01:19]} 40. c4 {[%emt 0:00:00]} h6 {[%emt 0:00:00]} 41. f6 {[%emt 0:06:01]} g5 {[%emt 0:04:29]} 42. c5 {[%emt 0:05:36]} Qxa4 {[%emt 0:05:17]} 43. c6 {[%emt 0:00:24]} Rc8 {[%emt 0:00:24]} 44. c7 {[%emt 0:04:57]} Qe4 {[%emt 0:02:39]} 45. Qc5 {[%emt 0:02:25]} Qb7 {[%emt 0:09:06]} 46. Qd6 {[%emt 0:09:02]} Kh7 {[%emt 0:05:17]} 47. Qd7 {[%emt 0:00:40]} Kg6 {[%emt 0:00:24]} 48. Qd3+ {[%emt 0:05:25]} Kxf6 {[%emt 0:00:27]} 49. Rf2+ {[%emt 0:00:05]} Ke7 {[%emt 0:04:03]} 50. Qa3+ {[%emt 0:02:14]} Ke6 {[%emt 0:02:33]} 51. Qa2+ {[%emt 0:00:08]} Ke5 {[%emt 0:01:02]} 52. Qe2+ {[%emt 0:01:13]} Kd4 {[%emt 0:02:35]} 53. Qg4+ {[%emt 0:00:29]} Kc5 {[%emt 0:00:32]} 54. Rf5+ {[%emt 0:00:34]} Kc6 {[%emt 0:03:41]} 55. Qe4+ {[%emt 0:00:26]} Kb6 {[%emt 0:00:08]} 56. Qd4+ {[%emt 0:00:07]} Kc6 {[%emt 0:00:17]} 57. Rc5+ {[%emt 0:00:43]} Kb6 {[%emt 0:00:06]} 58. Rc2+ {[%emt 0:00:14]} Ka5 {[%emt 0:00:14]} 59. Ra2+ {[%emt 0:00:09]} 1-0

[Event "European Womens-ch 2025"]
[Site "Rhodes"]
[Date "2025.04.05"]
[Round "6.48"]
[White "Shuqja, Klean"]
[Black "Zaksaite, Salomeja"]
[Result "0-1"]
[Annotator "NA"]
[ECO "B04"]
[WhiteElo "2049"]
[BlackElo "2137"]
[PlyCount "88"]
[EventDate "2025.03.29"]
[EventType "swiss"]
[EventCountry "GRE"]
[SourceTitle "playchess.com"]
[Source "ChessBase"]
[SourceQuality "1"]
[TimeControl "40/5400+30:1800+30"]

1. e4 {[%emt 0:02:24]} Nf6 {[%emt 0:00:07]} 2. e5 {[%emt 0:00:10]} Nd5 {[%emt 0:00:06]} 3. d4 {[%emt 0:00:03]} d6 {[%emt 0:00:03]} 4. Nf3 {[%emt 0:00:10]} dxe5 {[%emt 0:00:27]} 5. Nxe5 {[%emt 0:00:06]} c6 {[%emt 0:00:09]} 6. Be2 {[%emt 0:05:34]} Bf5 {[%emt 0:00:08]} 7. O-O {[%emt 0:03:16]} Nd7 {[%emt 0:01:12]} 8. Nd3 {[%emt 0:06:21]} e6 {[%emt 0:00:15]} 9. Nd2 {[%emt 0:02:22]} Be7 {[%emt 0:03:56]} 10. Nf3 {[%emt 1:15:04]} O-O {[%emt 0:01:09]} 11. h3 {[%emt 0:00:00]} Bf6 {[%emt 0:02:30]} 12. c4 {[%emt 0:00:00]} N5b6 {[%emt 0:01:02]} 13. Qb3 {[%emt 0:00:00]} Bxd3 {[%emt 0:05:22]} 14. Qxd3 {[%emt 0:00:00]} c5 {[%emt 0:02:35]} 15. d5 {[%emt 0:00:00]} exd5 {[%emt 0:00:13]} 16. cxd5 {[%emt 0:00:00]} c4 {[%emt 0:00:15]} 17. Qf5 {[%emt 0:00:00]} Re8 {[%emt 0:02:04]} 18. Qc2 {[%emt 0:00:00]} Rc8 {[%emt 0:00:17]} 19. Rd1 {[%emt 0:00:00]} c3 {[%emt 0:00:30]} 20. b4 {[%emt 0:00:00]} Rxe2 {[%emt 0:00:30]} 21. Qxe2 {[%emt 0:00:00]} c2 {[%emt 0:05:00]} 22. Rd4 {[%emt 0:00:00]} Bxd4 {[%emt 0:02:28]} 23. Nxd4 {[%emt 0:00:00]} Qf6 {[%emt 0:00:07]} 24. Qe4 {[%emt 0:00:00]} Qe5 {[%emt 0:36:01]} 25. Qxe5 {[%emt 0:03:15]} Nxe5 {[%emt 0:00:04]} 26. d6 {[%emt 0:00:15]} Kf8 {[%emt 0:03:16]} 27. Kf1 {[%emt 0:02:57]} Ke8 {[%emt 0:01:45]} 28. Ke2 {[%emt 0:00:42]} Rc4 {[%emt 0:00:45]} 29. Be3 {[%emt 0:00:36]} Nd5 {[%emt 0:32:44]} 30. Kd2 {[%emt 0:01:18]} Nxb4 {[%emt 0:00:00]} 31. Nb3 {[%emt 0:00:55]} b6 {[%emt 0:00:00]} 32. a3 {[%emt 0:00:17]} Nd5 {[%emt 0:00:00]} 33. Nd4 {[%emt 0:00:34]} Nxe3 {[%emt 0:00:00]} 34. fxe3 {[%emt 0:00:03]} c1=Q+ {[%emt 0:00:00]} 35. Rxc1 {[%emt 0:00:01]} Rxc1 {[%emt 0:00:00]} 36. Kxc1 {[%emt 0:00:02]} Kd7 {[%emt 0:00:00]} 37. Nc2 {[%emt 0:01:43]} Kxd6 {[%emt 0:00:00]} 38. Kd2 {[%emt 0:00:01]} Kc5 {[%emt 0:00:00]} 39. Kc3 {[%emt 0:00:05]} b5 {[%emt 0:00:00]} 40. e4 {[%emt 0:00:00]} Nc4 {[%emt 0:00:00]} 41. Kd3 {[%emt 0:05:24]} a5 {[%emt 0:00:00]} 42. g4 {[%emt 0:00:24]} g5 {[%emt 0:00:00]} 43. Ke2 {[%emt 0:01:01]} b4 {[%emt 0:00:00]} 44. axb4+ {[%emt 0:02:12]} axb4 {[%emt 0:00:00]} 0-1

[Event "European Womens-ch 2025"]
[Site "Rhodes"]
[Date "2025.04.05"]
[Round "6.49"]
[White "Donghvani, Nia"]
[Black "Ciolacu, Alessia-Mihaela"]
[Result "1-0"]
[Annotator "NA"]
[ECO "C71"]
[WhiteElo "2025"]
[BlackElo "2136"]
[PlyCount "77"]
[EventDate "2025.03.29"]
[EventType "swiss"]
[EventCountry "GRE"]
[SourceTitle "playchess.com"]
[Source "ChessBase"]
[SourceQuality "1"]
[TimeControl "40/5400+30:1800+30"]

1. e4 {[%emt 0:00:14]} e5 {[%emt 0:00:10]} 2. Nf3 {[%emt 0:00:05]} Nc6 {[%emt 0:00:08]} 3. Bb5 {[%emt 0:00:05]} a6 {[%emt 0:00:27]} 4. Ba4 {[%emt 0:00:04]} d6 {[%emt 0:00:32]} 5. c4 {[%emt 0:00:17]} Bd7 {[%emt 0:03:16]} 6. Nc3 {[%emt 0:02:02]} g6 {[%emt 0:01:50]} 7. d4 {[%emt 0:00:18]} Bg7 {[%emt 0:01:00]} 8. d5 {[%emt 0:00:31]} Nb8 {[%emt 0:04:04]} 9. Bxd7+ {[%emt 0:18:46]} Nxd7 {[%emt 0:00:15]} 10. Be3 {[%emt 0:00:05]} h6 {[%emt 0:02:13]} 11. Qc2 {[%emt 0:02:33]} Ne7 {[%emt 0:01:55]} 12. g4 {[%emt 0:00:59]} h5 {[%emt 0:23:28]} 13. gxh5 {[%emt 0:07:14]} Rxh5 {[%emt 0:00:15]} 14. O-O-O {[%emt 0:00:05]} Bh6 {[%emt 0:09:26]} 15. Bxh6 {[%emt 0:06:36]} Rxh6 {[%emt 0:00:06]} 16. Kb1 {[%emt 0:00:01]} Ng8 {[%emt 0:09:02]} 17. h4 {[%emt 0:09:40]} Qe7 {[%emt 0:07:39]} 18. Rc1 {[%emt 0:08:48]} Ngf6 {[%emt 0:08:02]} 19. Na4 {[%emt 0:07:24]} b6 {[%emt 0:07:26]} 20. Nc3 {[%emt 0:10:21]} Kf8 {[%emt 0:00:49]} 21. Ne2 {[%emt 0:05:04]} Nh5 {[%emt 0:04:51]} 22. Qd2 {[%emt 0:03:32]} Rh8 {[%emt 0:00:26]} 23. Ng5 {[%emt 0:00:49]} Ndf6 {[%emt 0:06:47]} 24. Rcf1 {[%emt 0:05:43]} Kg7 {[%emt 0:03:29]} 25. Rhg1 {[%emt 0:03:22]} Nf4 {[%emt 0:01:02]} 26. Nxf4 {[%emt 0:00:43]} exf4 {[%emt 0:00:02]} 27. Qxf4 {[%emt 0:00:11]} Rae8 {[%emt 0:00:42]} 28. Re1 {[%emt 0:02:36]} Nd7 {[%emt 0:02:07]} 29. Qg3 {[%emt 0:02:26]} b5 {[%emt 0:00:49]} 30. cxb5 {[%emt 0:00:52]} axb5 {[%emt 0:00:07]} 31. f4 {[%emt 0:00:05]} b4 {[%emt 0:00:45]} 32. f5 {[%emt 0:03:12]} Rh6 {[%emt 0:01:25]} 33. fxg6 {[%emt 0:00:15]} fxg6 {[%emt 0:00:48]} 34. h5 {[%emt 0:01:09]} Nc5 {[%emt 0:01:13]} 35. hxg6 {[%emt 0:00:55]} Qe5 {[%emt 0:00:36]} 36. Qxe5+ {[%emt 0:00:20]} dxe5 {[%emt 0:00:02]} 37. Rc1 {[%emt 0:00:17]} Na6 {[%emt 0:00:24]} 38. Ne6+ {[%emt 0:00:15]} Kf6 {[%emt 0:01:12]} 39. Rc6 {[%emt 0:00:32]} 1-0

[Event "European Womens-ch 2025"]
[Site "Rhodes"]
[Date "2025.04.05"]
[Round "6.50"]
[White "Chelushkina, Irina"]
[Black "Caku, Kler"]
[Result "1-0"]
[Annotator "NA"]
[ECO "E05"]
[WhiteElo "2134"]
[BlackElo "2036"]
[PlyCount "117"]
[EventDate "2025.03.29"]
[EventType "swiss"]
[EventCountry "GRE"]
[SourceTitle "playchess.com"]
[Source "ChessBase"]
[SourceQuality "1"]
[TimeControl "40/5400+30:1800+30"]

1. g3 {[%emt 0:00:03]} d5 {[%emt 0:00:05]} 2. Nf3 {[%emt 0:00:07]} Nf6 {[%emt 0:00:07]} 3. Bg2 {[%emt 0:00:27]} e6 {[%emt 0:00:09]} 4. O-O {[%emt 0:00:10]} Be7 {[%emt 0:00:14]} 5. c4 {[%emt 0:02:23]} O-O {[%emt 0:01:39]} 6. d4 {[%emt 0:00:19]} dxc4 {[%emt 0:00:48]} 7. Qc2 {[%emt 0:00:04]} a6 {[%emt 0:00:27]} 8. a4 {[%emt 0:00:06]} c5 {[%emt 0:03:24]} 9. dxc5 {[%emt 0:01:04]} Bxc5 {[%emt 0:00:20]} 10. Nbd2 {[%emt 0:04:39]} Qe7 {[%emt 0:03:31]} 11. Nxc4 {[%emt 0:00:38]} Ra7 {[%emt 0:03:07]} 12. b4 {[%emt 0:08:14]} Bxb4 {[%emt 0:06:33]} 13. Be3 {[%emt 0:02:35]} Bc5 {[%emt 0:07:29]} 14. Nb6 {[%emt 0:05:15]} Bxb6 {[%emt 0:18:41]} 15. Bxb6 {[%emt 0:00:05]} Ra8 {[%emt 0:00:58]} 16. Bc5 {[%emt 0:03:43]} Qc7 {[%emt 0:01:26]} 17. Rfc1 {[%emt 0:00:05]} Re8 {[%emt 0:03:08]} 18. Qb2 {[%emt 0:06:26]} Nc6 {[%emt 0:03:21]} 19. Nd2 {[%emt 0:07:33]} e5 {[%emt 0:13:58]} 20. Nc4 {[%emt 0:04:16]} Be6 {[%emt 0:06:08]} 21. Bd6 {[%emt 0:10:15]} Qd7 {[%emt 0:02:47]} 22. Nb6 {[%emt 0:01:42]} Qxd6 {[%emt 0:00:16]} 23. Nxa8 {[%emt 0:00:06]} Bd5 {[%emt 0:08:39]} 24. Bxd5 {[%emt 0:06:07]} Nxd5 {[%emt 0:00:07]} 25. Qxb7 {[%emt 0:00:51]} Ndb4 {[%emt 0:03:20]} 26. Rd1 {[%emt 0:03:00]} Qf6 {[%emt 0:01:26]} 27. Nb6 {[%emt 0:05:02]} h5 {[%emt 0:03:08]} 28. Nd5 {[%emt 0:10:58]} Nxd5 {[%emt 0:00:20]} 29. Rxd5 {[%emt 0:00:01]} Nd4 {[%emt 0:01:02]} 30. Qd7 {[%emt 0:05:55]} Ra8 {[%emt 0:03:10]} 31. Qd6 {[%emt 0:04:16]} Nxe2+ {[%emt 0:01:15]} 32. Kf1 {[%emt 0:00:13]} Qf3 {[%emt 0:00:40]} 33. Ra3 {[%emt 0:03:14]} Nc3 {[%emt 0:00:41]} 34. Rxc3 {[%emt 0:00:03]} Qxc3 {[%emt 0:00:07]} 35. Rxe5 {[%emt 0:02:21]} Qc4+ {[%emt 0:02:07]} 36. Kg2 {[%emt 0:00:01]} Qxa4 {[%emt 0:00:24]} 37. Rxh5 {[%emt 0:00:01]} Qe4+ {[%emt 0:00:22]} 38. Kh3 {[%emt 0:01:42]} a5 {[%emt 0:00:34]} 39. Rh4 {[%emt 0:01:03]} Qf5+ {[%emt 0:01:44]} 40. Kg2 {[%emt 0:00:00]} a4 {[%emt 0:00:00]} 41. Qc6 {[%emt 0:00:13]} Qa5 {[%emt 0:06:40]} 42. Qe4 {[%emt 0:00:19]} Rd8 {[%emt 0:10:22]} 43. Qh7+ {[%emt 0:00:37]} Kf8 {[%emt 0:00:05]} 44. Qh8+ {[%emt 0:01:44]} Ke7 {[%emt 0:00:04]} 45. Re4+ {[%emt 0:02:55]} Kd6 {[%emt 0:05:06]} 46. Qxg7 {[%emt 0:00:41]} Qd5 {[%emt 0:00:31]} 47. f3 {[%emt 0:05:10]} Qd2+ {[%emt 0:03:42]} 48. Kh3 {[%emt 0:00:30]} Kc5 {[%emt 0:01:09]} 49. Qe5+ {[%emt 0:07:15]} Kb6 {[%emt 0:01:48]} 50. Rxa4 {[%emt 0:00:00]} Qd7+ {[%emt 0:00:59]} 51. Rg4 {[%emt 0:00:00]} Qc8 {[%emt 0:02:59]} 52. Qb2+ {[%emt 0:00:00]} Ka7 {[%emt 0:00:07]} 53. Kg2 {[%emt 0:00:00]} Qa6 {[%emt 0:00:21]} 54. Qf2+ {[%emt 0:05:31]} Ka8 {[%emt 0:00:24]} 55. Qc2 {[%emt 0:00:22]} Re8 {[%emt 0:01:56]} 56. Qa4 {[%emt 0:00:33]} Re2+ {[%emt 0:00:30]} 57. Kh3 {[%emt 0:00:44]} Qxa4 {[%emt 0:00:13]} 58. Rxa4+ {[%emt 0:00:01]} Kb7 {[%emt 0:00:09]} 59. Rf4 {[%emt 0:00:08]} 1-0